[Event "*** SCC Grand Prix: Titled Tuesday Blitz"]
[Site "Chess.com"]
[Date "2020.09.08"]
[Round "10"]
[White "GadimbayliA"]
[Black "Sanyura"]
[Result "1-0"]
[WhiteElo "2892"]
[BlackElo "2578"]
[TimeControl "180+1"]
[EndTime "11:57:06 PDT"]
[Termination "GadimbayliA won by resignation"]

1. e4 {[%clk 0:03:00.9]} 1... c5 {[%clk 0:02:56.7]} 2. Nf3 {[%clk 0:03:01.2]}
2... e6 {[%clk 0:02:54.4]} 3. d4 {[%clk 0:03:01.1]} 3... cxd4 {[%clk 0:02:55.3]}
4. Nxd4 {[%clk 0:03:02]} 4... Nc6 {[%clk 0:02:55.3]} 5. Nc3 {[%clk 0:03:02.1]}
5... Nf6 {[%clk 0:02:55.3]} 6. Nxc6 {[%clk 0:03:02.3]} 6... bxc6 {[%clk
0:02:54.9]} 7. Bd3 {[%clk 0:03:03.2]} 7... d5 {[%clk 0:02:53.2]} 8. O-O {[%clk
0:03:03.8]} 8... Be7 {[%clk 0:02:53]} 9. Bf4 {[%clk 0:03:03.1]} 9... O-O {[%clk
0:02:52.9]} 10. Qf3 {[%clk 0:03:03.1]} 10... a5 {[%clk 0:02:51.5]} 11. Rad1
{[%clk 0:03:02.3]} 11... Ba6 {[%clk 0:02:50.2]} 12. b3 {[%clk 0:02:27.1]} 12...
Nd7 {[%clk 0:02:36.5]} 13. Na4 {[%clk 0:02:11.5]} 13... Bf6 {[%clk 0:02:09.7]}
14. c4 {[%clk 0:01:57.7]} 14... Be5 {[%clk 0:01:58.9]} 15. exd5 {[%clk
0:01:44.6]} 15... cxd5 {[%clk 0:01:55.5]} 16. cxd5 {[%clk 0:01:42.7]} 16... Bxd3
{[%clk 0:01:16]} 17. Rxd3 {[%clk 0:01:43.6]} 17... Bxf4 {[%clk 0:01:15.6]} 18.
Qxf4 {[%clk 0:01:42.1]} 18... Nf6 {[%clk 0:01:16]} 19. d6 {[%clk 0:01:35.5]}
19... Nd5 {[%clk 0:01:14]} 20. Qg3 {[%clk 0:01:36]} 20... Ra6 {[%clk 0:01:14.1]}
21. Nc5 {[%clk 0:01:35.5]} 21... Rc6 {[%clk 0:01:12.6]} 22. Ne4 {[%clk
0:01:33.3]} 22... f5 {[%clk 0:01:11]} 23. Ng5 {[%clk 0:01:29.3]} 23... Qxd6
{[%clk 0:00:59.5]} 24. Qxd6 {[%clk 0:01:27.5]} 24... Rxd6 {[%clk 0:01:00.4]} 25.
Nxe6 {[%clk 0:01:28.2]} 25... Rxe6 {[%clk 0:00:56.4]} 26. Rxd5 {[%clk
0:01:28.4]} 26... a4 {[%clk 0:00:56.5]} 27. bxa4 {[%clk 0:01:28.3]} 27... Re2
{[%clk 0:00:53.4]} 28. Ra1 {[%clk 0:01:04.3]} 28... Ra8 {[%clk 0:00:45.5]} 29.
a5 {[%clk 0:01:02.7]} 29... f4 {[%clk 0:00:30]} 30. h4 {[%clk 0:01:00.2]} 30...
Re4 {[%clk 0:00:27.2]} 31. a4 {[%clk 0:00:52.5]} 31... Rb4 {[%clk 0:00:16.1]}
32. Kh2 {[%clk 0:00:51.4]} 32... h6 {[%clk 0:00:15.7]} 33. Rb5 {[%clk
0:00:50.4]} 33... Rc4 {[%clk 0:00:15.2]} 34. h5 {[%clk 0:00:50.8]} 34... Ra6
{[%clk 0:00:14.2]} 35. f3 {[%clk 0:00:50.3]} 35... Kf8 {[%clk 0:00:13.9]} 36.
Kh3 {[%clk 0:00:50.2]} 36... Kf7 {[%clk 0:00:14.3]} 37. Ra2 {[%clk 0:00:49.8]}
37... Kg8 {[%clk 0:00:13.8]} 38. Kg4 {[%clk 0:00:50]} 38... Kh7 {[%clk
0:00:13.7]} 39. Rf5 {[%clk 0:00:46.1]} 39... Kg8 {[%clk 0:00:12.8]} 40. Rxf4
{[%clk 0:00:43.1]} 40... Rxf4+ {[%clk 0:00:10.7]} 41. Kxf4 {[%clk 0:00:44]}
41... Rxa5 {[%clk 0:00:11.6]} 42. g4 {[%clk 0:00:43.6]} 42... Kf7 {[%clk
0:00:12.2]} 43. Ke4 {[%clk 0:00:44.1]} 43... Kf6 {[%clk 0:00:12.5]} 44. Kd4
{[%clk 0:00:41.9]} 44... Kg5 {[%clk 0:00:11.9]} 45. Kc4 {[%clk 0:00:42.4]} 45...
Kf4 {[%clk 0:00:12.4]} 46. Ra3 {[%clk 0:00:42.9]} 46... Ra6 {[%clk 0:00:07.9]}
47. Kb5 {[%clk 0:00:42.6]} 47... Ra8 {[%clk 0:00:07.6]} 48. a5 {[%clk
0:00:42.7]} 48... Rc8 {[%clk 0:00:06.9]} 49. a6 {[%clk 0:00:42.5]} 49... Rb8+
{[%clk 0:00:07.5]} 50. Kc6 {[%clk 0:00:42.6]} 50... Rf8 {[%clk 0:00:06.5]} 51.
a7 {[%clk 0:00:42.4]} 51... Rf6+ {[%clk 0:00:06.3]} 52. Kd7 {[%clk 0:00:41.4]}
52... Rf7+ {[%clk 0:00:06.4]} 53. Ke6 {[%clk 0:00:41.4]} 53... Rxa7 {[%clk
0:00:06.6]} 54. Rxa7 {[%clk 0:00:41.9]} 1-0

[Event "*** SCC Grand Prix: Titled Tuesday Blitz"]
[Site "Chess.com"]
[Date "2020.09.08"]
[Round "10"]
[White "Roaccutane"]
[Black "MFBerna"]
[Result "0-1"]
[WhiteElo "2582"]
[BlackElo "2472"]
[TimeControl "180+1"]
[EndTime "11:57:06 PDT"]
[Termination "MFBerna won by resignation"]

1. Nf3 {[%clk 0:03:00.9]} 1... Nf6 {[%clk 0:02:59.9]} 2. c4 {[%clk 0:03:01.4]}
2... e6 {[%clk 0:02:59.9]} 3. g3 {[%clk 0:03:00.6]} 3... d5 {[%clk 0:03:00.4]}
4. b3 {[%clk 0:03:00.6]} 4... Be7 {[%clk 0:03:00.7]} 5. Bb2 {[%clk 0:03:01.1]}
5... O-O {[%clk 0:03:00.9]} 6. Bg2 {[%clk 0:03:01.8]} 6... c5 {[%clk 0:03:01.2]}
7. O-O {[%clk 0:03:02.3]} 7... Nc6 {[%clk 0:03:01.5]} 8. d3 {[%clk 0:03:02.6]}
8... b6 {[%clk 0:03:01.2]} 9. a3 {[%clk 0:03:02.4]} 9... Bb7 {[%clk 0:03:01.3]}
10. Nbd2 {[%clk 0:03:02.8]} 10... Rc8 {[%clk 0:03:01.5]} 11. Qc2 {[%clk
0:03:03.3]} 11... d4 {[%clk 0:02:59.4]} 12. h3 {[%clk 0:03:01.2]} 12... e5
{[%clk 0:02:59.3]} 13. Rfe1 {[%clk 0:03:00.6]} 13... Re8 {[%clk 0:02:59]} 14. e3
{[%clk 0:03:00.9]} 14... h6 {[%clk 0:02:51.7]} 15. exd4 {[%clk 0:03:00.6]} 15...
exd4 {[%clk 0:02:52.6]} 16. Nh4 {[%clk 0:02:59.9]} 16... g6 {[%clk 0:02:48.2]}
17. Rad1 {[%clk 0:02:52.9]} 17... Kg7 {[%clk 0:02:40.4]} 18. Bc1 {[%clk
0:02:53.1]} 18... Qc7 {[%clk 0:02:11.8]} 19. Ndf3 {[%clk 0:02:52.2]} 19... Bd6
{[%clk 0:02:01.7]} 20. Qd2 {[%clk 0:02:45.2]} 20... Ng8 {[%clk 0:02:01.6]} 21.
Nh2 {[%clk 0:02:39]} 21... Nce7 {[%clk 0:01:33.3]} 22. Bxb7 {[%clk 0:02:18.3]}
22... Qxb7 {[%clk 0:01:34.2]} 23. Ng4 {[%clk 0:02:18.4]} 23... g5 {[%clk
0:00:55.5]} 24. Nxh6 {[%clk 0:02:18.1]} 24... gxh4 {[%clk 0:00:45.9]} 25. Qg5+
{[%clk 0:02:13.9]} 25... Kf8 {[%clk 0:00:24.2]} 26. Qxh4 {[%clk 0:00:26.5]}
26... Ng6 {[%clk 0:00:24]} 27. Qh5 {[%clk 0:00:24.6]} 27... Nxh6 {[%clk
0:00:16.4]} 28. Bxh6+ {[%clk 0:00:25.5]} 28... Kg8 {[%clk 0:00:17]} 29. Bg5
{[%clk 0:00:25.2]} 29... Bf8 {[%clk 0:00:13.9]} 30. h4 {[%clk 0:00:24.1]} 30...
Ne5 {[%clk 0:00:11.7]} 31. Re4 {[%clk 0:00:20.6]} 31... Bg7 {[%clk 0:00:11.1]}
32. Bf4 {[%clk 0:00:18.5]} 32... Nxd3 {[%clk 0:00:07.4]} 33. Rxe8+ {[%clk
0:00:10.8]} 33... Rxe8 {[%clk 0:00:08.3]} 34. Bg5 {[%clk 0:00:11.4]} 34... Qe4
{[%clk 0:00:06.7]} 35. Kh2 {[%clk 0:00:08.3]} 35... Ne5 {[%clk 0:00:06.4]} 36.
Kh3 {[%clk 0:00:07.3]} 36... Qf5+ {[%clk 0:00:06.1]} 37. Kg2 {[%clk 0:00:06.7]}
37... Qe4+ {[%clk 0:00:05.2]} 38. Kh3 {[%clk 0:00:06.9]} 38... d3 {[%clk
0:00:05.8]} 39. Bf4 {[%clk 0:00:07.2]} 39... Ng6 {[%clk 0:00:04.7]} 40. Qg4
{[%clk 0:00:06.4]} 40... Qe2 {[%clk 0:00:04.7]} 41. Qxe2 {[%clk 0:00:05.4]}
41... dxe2 {[%clk 0:00:05.4]} 42. Re1 {[%clk 0:00:06.3]} 42... Nxf4+ {[%clk
0:00:06.1]} 43. gxf4 {[%clk 0:00:07.2]} 43... Bc3 {[%clk 0:00:06.7]} 44. Rg1+
{[%clk 0:00:08.1]} 44... Kf8 {[%clk 0:00:06.6]} 45. Rg3 {[%clk 0:00:09]} 45...
e1=Q {[%clk 0:00:07.1]} 46. Kg4 {[%clk 0:00:09.9]} 46... Qxf2 {[%clk 0:00:07.1]}
47. Kf5 {[%clk 0:00:10.8]} 47... Qe2 {[%clk 0:00:07.7]} 0-1

[Event "*** SCC Grand Prix: Titled Tuesday Blitz"]
[Site "Chess.com"]
[Date "2020.09.08"]
[Round "10"]
[White "barriochess"]
[Black "PIwan"]
[Result "1-0"]
[WhiteElo "2403"]
[BlackElo "2538"]
[TimeControl "180+1"]
[EndTime "11:57:07 PDT"]
[Termination "barriochess won by resignation"]

1. d4 {[%clk 0:03:00.9]} 1... d5 {[%clk 0:02:59.7]} 2. c4 {[%clk 0:02:59]} 2...
dxc4 {[%clk 0:02:57.3]} 3. e3 {[%clk 0:02:56.9]} 3... b5 {[%clk 0:02:51.9]} 4.
a4 {[%clk 0:02:50.5]} 4... b4 {[%clk 0:02:51.9]} 5. Bxc4 {[%clk 0:02:48.3]} 5...
Nf6 {[%clk 0:02:52]} 6. Nf3 {[%clk 0:02:45.3]} 6... e6 {[%clk 0:02:52]} 7. O-O
{[%clk 0:02:44.5]} 7... Bb7 {[%clk 0:02:50.5]} 8. Qe2 {[%clk 0:02:43.9]} 8...
Be7 {[%clk 0:02:44.5]} 9. a5 {[%clk 0:02:28.2]} 9... a6 {[%clk 0:02:41.6]} 10.
Nbd2 {[%clk 0:02:26.6]} 10... O-O {[%clk 0:02:39.8]} 11. Nb3 {[%clk 0:02:23.6]}
11... Nbd7 {[%clk 0:02:37.5]} 12. Rd1 {[%clk 0:02:22.6]} 12... c5 {[%clk
0:02:28.9]} 13. dxc5 {[%clk 0:02:01.8]} 13... Qc7 {[%clk 0:02:28.4]} 14. Bd2
{[%clk 0:01:58.8]} 14... Nxc5 {[%clk 0:02:11.2]} 15. Bxb4 {[%clk 0:01:45.7]}
15... Bxf3 {[%clk 0:02:06.6]} 16. gxf3 {[%clk 0:01:44.9]} 16... Nxb3 {[%clk
0:01:35.8]} 17. Bxe7 {[%clk 0:01:42.5]} 17... Qxe7 {[%clk 0:01:26.9]} 18. Bxb3
{[%clk 0:01:40.1]} 18... Rfb8 {[%clk 0:01:23.2]} 19. Bc4 {[%clk 0:01:38.2]}
19... Rb4 {[%clk 0:00:51]} 20. b3 {[%clk 0:00:48.7]} 20... h6 {[%clk 0:00:47.6]}
21. Bxa6 {[%clk 0:00:46.7]} 21... Rh4 {[%clk 0:00:47]} 22. f4 {[%clk 0:00:42.1]}
22... Ng4 {[%clk 0:00:43.6]} 23. h3 {[%clk 0:00:31.9]} 23... Nf6 {[%clk
0:00:27.4]} 24. Kg2 {[%clk 0:00:26.5]} 24... g5 {[%clk 0:00:22.9]} 25. fxg5
{[%clk 0:00:25.5]} 25... hxg5 {[%clk 0:00:23.8]} 26. Bc4 {[%clk 0:00:23.8]}
26... Kg7 {[%clk 0:00:22.5]} 27. a6 {[%clk 0:00:19.3]} 27... g4 {[%clk
0:00:22.2]} 28. Rh1 {[%clk 0:00:17.5]} 28... Rah8 {[%clk 0:00:20.4]} 29. a7
{[%clk 0:00:11.7]} 29... gxh3+ {[%clk 0:00:19.9]} 30. Kf1 {[%clk 0:00:11.4]}
30... Qb7 {[%clk 0:00:16.3]} 31. Rg1+ {[%clk 0:00:11.1]} 31... Kf8 {[%clk
0:00:16.1]} 32. a8=Q+ {[%clk 0:00:09.9]} 32... Qxa8 {[%clk 0:00:14.9]} 33. Rxa8+
{[%clk 0:00:10.8]} 33... Ke7 {[%clk 0:00:15.5]} 34. Rxh8 {[%clk 0:00:10.6]}
34... Rxh8 {[%clk 0:00:16.4]} 35. Rh1 {[%clk 0:00:10.7]} 35... Ne4 {[%clk
0:00:15.5]} 36. Qd3 {[%clk 0:00:06.3]} 36... Nc5 {[%clk 0:00:15]} 37. Qd4 {[%clk
0:00:05.9]} 37... Rh5 {[%clk 0:00:15.2]} 38. Qg7 {[%clk 0:00:04.9]} 38... Ne4
{[%clk 0:00:14.2]} 39. Qg4 {[%clk 0:00:04.5]} 39... Re5 {[%clk 0:00:11.2]} 40.
Rxh3 {[%clk 0:00:03.9]} 40... Nf6 {[%clk 0:00:11.5]} 41. Qh4 {[%clk 0:00:04]}
41... Rf5 {[%clk 0:00:10.6]} 42. Bd3 {[%clk 0:00:03.4]} 42... Rxf2+ {[%clk
0:00:04.7]} 43. Kxf2 {[%clk 0:00:02.7]} 1-0

[Event "*** SCC Grand Prix: Titled Tuesday Blitz"]
[Site "Chess.com"]
[Date "2020.09.08"]
[Round "10"]
[White "LittleMyMoomin"]
[Black "Klavdia_Nik"]
[Result "0-1"]
[WhiteElo "1838"]
[BlackElo "2121"]
[TimeControl "180+1"]
[EndTime "11:57:07 PDT"]
[Termination "Klavdia_Nik won on time"]

1. d4 {[%clk 0:02:59.4]} 1... Nf6 {[%clk 0:02:58.7]} 2. c4 {[%clk 0:02:55.8]}
2... c5 {[%clk 0:02:58.2]} 3. d5 {[%clk 0:02:54.8]} 3... b5 {[%clk 0:02:58.1]}
4. cxb5 {[%clk 0:02:53.1]} 4... a6 {[%clk 0:02:58.7]} 5. bxa6 {[%clk 0:02:53.4]}
5... Bxa6 {[%clk 0:02:58.9]} 6. Nc3 {[%clk 0:02:52.7]} 6... d6 {[%clk 0:02:59]}
7. e4 {[%clk 0:02:52.8]} 7... Bxf1 {[%clk 0:02:58.9]} 8. Kxf1 {[%clk 0:02:53.1]}
8... g6 {[%clk 0:02:59.6]} 9. Nf3 {[%clk 0:02:53.2]} 9... Bg7 {[%clk 0:02:59.3]}
10. g3 {[%clk 0:02:53.5]} 10... O-O {[%clk 0:02:59.9]} 11. Kg2 {[%clk
0:02:53.3]} 11... Qa5 {[%clk 0:03:00.4]} 12. a4 {[%clk 0:02:48.9]} 12... Nbd7
{[%clk 0:02:57.7]} 13. Bd2 {[%clk 0:02:29.7]} 13... Qb4 {[%clk 0:02:41]} 14. Qc2
{[%clk 0:02:22.8]} 14... Qc4 {[%clk 0:02:27]} 15. b3 {[%clk 0:02:08.2]} 15...
Qa6 {[%clk 0:02:26.4]} 16. Rab1 {[%clk 0:01:58]} 16... Rfc8 {[%clk 0:02:19.6]}
17. Nb5 {[%clk 0:01:48.7]} 17... Ne8 {[%clk 0:02:15.5]} 18. Bc3 {[%clk
0:01:42.6]} 18... f6 {[%clk 0:02:16]} 19. Nd2 {[%clk 0:01:40.8]} 19... Nc7
{[%clk 0:02:14.6]} 20. Nxc7 {[%clk 0:01:38.4]} 20... Rxc7 {[%clk 0:02:15]} 21.
Nc4 {[%clk 0:01:38.5]} 21... Rcc8 {[%clk 0:01:59.1]} 22. f4 {[%clk 0:01:36.8]}
22... Nb6 {[%clk 0:01:34.9]} 23. Nxb6 {[%clk 0:01:26.9]} 23... Qxb6 {[%clk
0:01:34.1]} 24. Qd3 {[%clk 0:01:14]} 24... Rcb8 {[%clk 0:01:22.9]} 25. Rhf1
{[%clk 0:01:11.8]} 25... Qa6 {[%clk 0:01:20.1]} 26. Qxa6 {[%clk 0:01:09]} 26...
Rxa6 {[%clk 0:01:20.7]} 27. f5 {[%clk 0:00:57.9]} 27... Bh6 {[%clk 0:01:18.5]}
28. h4 {[%clk 0:00:51.6]} 28... Kf7 {[%clk 0:01:12.4]} 29. Rf3 {[%clk
0:00:48.7]} 29... Rxa4 {[%clk 0:01:08.2]} 30. g4 {[%clk 0:00:46.7]} 30... Rxe4
{[%clk 0:01:01.7]} 31. g5 {[%clk 0:00:45.2]} 31... Bg7 {[%clk 0:00:52.4]} 32.
fxg6+ {[%clk 0:00:44.8]} 32... hxg6 {[%clk 0:00:50.1]} 33. Kg3 {[%clk
0:00:19.2]} 33... f5 {[%clk 0:00:49.6]} 34. Bxg7 {[%clk 0:00:16.9]} 34... Kxg7
{[%clk 0:00:49]} 35. Rc3 {[%clk 0:00:16.9]} 35... Rbb4 {[%clk 0:00:45.1]} 36.
Rh1 {[%clk 0:00:08.1]} 36... Rg4+ {[%clk 0:00:42.4]} 37. Kf3 {[%clk 0:00:08.1]}
37... Rbf4+ {[%clk 0:00:40.8]} 38. Ke3 {[%clk 0:00:08.2]} 38... Rd4 {[%clk
0:00:37.2]} 39. h5 {[%clk 0:00:07.5]} 39... Rxg5 {[%clk 0:00:35.1]} 40. hxg6
{[%clk 0:00:07.3]} 40... Kxg6 {[%clk 0:00:35.1]} 41. Kf2 {[%clk 0:00:04.8]}
41... Rxd5 {[%clk 0:00:32.8]} 42. Rch3 {[%clk 0:00:04.2]} 42... f4 {[%clk
0:00:23.1]} 43. Rh6+ {[%clk 0:00:05.1]} 43... Kf5 {[%clk 0:00:22.4]} 44. Re1
{[%clk 0:00:04.5]} 44... e5 {[%clk 0:00:21.9]} 45. Rd1 {[%clk 0:00:01.4]} 45...
Rxd1 {[%clk 0:00:20.4]} 0-1

[Event "*** SCC Grand Prix: Titled Tuesday Blitz"]
[Site "Chess.com"]
[Date "2020.09.08"]
[Round "10"]
[White "chessmachine14"]
[Black "kngopal"]
[Result "0-1"]
[WhiteElo "2333"]
[BlackElo "2252"]
[TimeControl "180+1"]
[EndTime "11:57:11 PDT"]
[Termination "kngopal won by checkmate"]

1. e4 {[%clk 0:03:00.9]} 1... e6 {[%clk 0:02:54.8]} 2. d4 {[%clk 0:02:59.2]}
2... d5 {[%clk 0:02:55.7]} 3. Nd2 {[%clk 0:02:55.4]} 3... Nf6 {[%clk 0:02:55.3]}
4. e5 {[%clk 0:02:55.2]} 4... Nfd7 {[%clk 0:02:55.4]} 5. Bd3 {[%clk 0:02:56.1]}
5... c5 {[%clk 0:02:55.6]} 6. c3 {[%clk 0:02:57]} 6... Nc6 {[%clk 0:02:55.9]} 7.
Ne2 {[%clk 0:02:57.4]} 7... cxd4 {[%clk 0:02:55.7]} 8. cxd4 {[%clk 0:02:58.3]}
8... Nb6 {[%clk 0:02:56]} 9. O-O {[%clk 0:02:57.4]} 9... Bd7 {[%clk 0:02:55.6]}
10. Kh1 {[%clk 0:02:56]} 10... Nb4 {[%clk 0:02:54.7]} 11. Bb1 {[%clk 0:02:55.6]}
11... Bb5 {[%clk 0:02:54.9]} 12. a4 {[%clk 0:02:42.8]} 12... Bd3 {[%clk
0:02:50.5]} 13. Bxd3 {[%clk 0:02:39]} 13... Nxd3 {[%clk 0:02:48.9]} 14. Qb3
{[%clk 0:02:38.8]} 14... Nb4 {[%clk 0:02:34.3]} 15. a5 {[%clk 0:02:38.4]} 15...
Nc8 {[%clk 0:02:29.2]} 16. Ra4 {[%clk 0:02:37.7]} 16... Na6 {[%clk 0:01:44.4]}
17. Qxb7 {[%clk 0:02:32.1]} 17... Nc7 {[%clk 0:01:43.6]} 18. b3 {[%clk
0:01:49.7]} 18... a6 {[%clk 0:01:35.6]} 19. Ba3 {[%clk 0:01:47.6]} 19... Bxa3
{[%clk 0:01:34.3]} 20. Rxa3 {[%clk 0:01:47.2]} 20... O-O {[%clk 0:01:34.4]} 21.
Rc1 {[%clk 0:01:39.6]} 21... Nb5 {[%clk 0:01:28.2]} 22. Qxa8 {[%clk 0:01:35.9]}
22... Nxa3 {[%clk 0:01:24.9]} 23. Qxa6 {[%clk 0:01:36.3]} 23... Ne7 {[%clk
0:01:13.6]} 24. Ra1 {[%clk 0:01:31.9]} 24... Nc2 {[%clk 0:01:12]} 25. Rc1 {[%clk
0:01:28.1]} 25... Qc7 {[%clk 0:00:57.2]} 26. Qd3 {[%clk 0:01:23.2]} 26... Rc8
{[%clk 0:00:53]} 27. Nf3 {[%clk 0:01:19.9]} 27... Nf5 {[%clk 0:00:42.1]} 28. Ne1
{[%clk 0:01:18.5]} 28... Qxa5 {[%clk 0:00:41.6]} 29. Nxc2 {[%clk 0:01:15]} 29...
h5 {[%clk 0:00:21.4]} 30. h3 {[%clk 0:01:14.2]} 30... Qa2 {[%clk 0:00:20.2]} 31.
Kh2 {[%clk 0:00:56.8]} 31... Qb2 {[%clk 0:00:19.1]} 32. b4 {[%clk 0:00:55]}
32... g6 {[%clk 0:00:17.8]} 33. b5 {[%clk 0:00:54.9]} 33... Rc4 {[%clk
0:00:16.3]} 34. Qd2 {[%clk 0:00:48.2]} 34... h4 {[%clk 0:00:15.4]} 35. Ne3
{[%clk 0:00:45.5]} 35... Qxd2 {[%clk 0:00:14.3]} 36. Rxc4 {[%clk 0:00:34.3]}
36... dxc4 {[%clk 0:00:14.2]} 37. b6 {[%clk 0:00:34.4]} 37... Qb4 {[%clk
0:00:12.2]} 38. d5 {[%clk 0:00:32.5]} 38... Nxe3 {[%clk 0:00:11.2]} 39. fxe3
{[%clk 0:00:32.7]} 39... Qxb6 {[%clk 0:00:11.2]} 40. d6 {[%clk 0:00:33.3]} 40...
Qxe3 {[%clk 0:00:11.5]} 41. d7 {[%clk 0:00:32]} 41... Qxe5+ {[%clk 0:00:11.4]}
42. Kh1 {[%clk 0:00:32.2]} 42... Qd6 {[%clk 0:00:11.4]} 43. Nc3 {[%clk
0:00:30.3]} 43... Qxd7 {[%clk 0:00:11.5]} 44. Ne4 {[%clk 0:00:31.2]} 44... Qd1+
{[%clk 0:00:11.1]} 45. Kh2 {[%clk 0:00:31.1]} 45... Qd4 {[%clk 0:00:09.1]} 46.
Ng5 {[%clk 0:00:28.8]} 46... Qf4+ {[%clk 0:00:08.5]} 47. Kg1 {[%clk 0:00:27.4]}
47... Qxg5 {[%clk 0:00:09.4]} 48. Kf2 {[%clk 0:00:28.1]} 48... Qd2+ {[%clk
0:00:09.9]} 49. Kf3 {[%clk 0:00:28]} 49... c3 {[%clk 0:00:10.8]} 50. Kg4 {[%clk
0:00:28.2]} 50... c2 {[%clk 0:00:11.7]} 51. Kxh4 {[%clk 0:00:28.5]} 51... c1=Q
{[%clk 0:00:12.6]} 52. g3 {[%clk 0:00:28.7]} 52... Qg5# {[%clk 0:00:12.4]} 0-1

[Event "*** SCC Grand Prix: Titled Tuesday Blitz"]
[Site "Chess.com"]
[Date "2020.09.08"]
[Round "10"]
[White "ShahMatKanal"]
[Black "Sven_Tica"]
[Result "1-0"]
[WhiteElo "2562"]
[BlackElo "2683"]
[TimeControl "180+1"]
[EndTime "11:57:12 PDT"]
[Termination "ShahMatKanal won by checkmate"]

1. Nf3 {[%clk 0:03:00.9]} 1... d5 {[%clk 0:02:59.9]} 2. g3 {[%clk 0:02:59.6]}
2... e6 {[%clk 0:03:00.4]} 3. Bg2 {[%clk 0:02:59]} 3... Nf6 {[%clk 0:03:01]} 4.
c4 {[%clk 0:02:57.7]} 4... Be7 {[%clk 0:03:01.1]} 5. d4 {[%clk 0:02:54.1]} 5...
O-O {[%clk 0:03:01.7]} 6. Qc2 {[%clk 0:02:48.6]} 6... c5 {[%clk 0:03:01]} 7.
dxc5 {[%clk 0:02:44.3]} 7... d4 {[%clk 0:02:49.9]} 8. O-O {[%clk 0:02:40.4]}
8... Bxc5 {[%clk 0:02:49.6]} 9. Nbd2 {[%clk 0:02:34.9]} 9... Nc6 {[%clk
0:02:36.6]} 10. Nb3 {[%clk 0:02:27.2]} 10... Qe7 {[%clk 0:02:33.5]} 11. Nxc5
{[%clk 0:02:23.1]} 11... Qxc5 {[%clk 0:02:34.4]} 12. a3 {[%clk 0:02:14.6]} 12...
a5 {[%clk 0:02:25.1]} 13. Bd2 {[%clk 0:02:10.5]} 13... a4 {[%clk 0:02:20.4]} 14.
Ne1 {[%clk 0:02:08.7]} 14... e5 {[%clk 0:02:17.5]} 15. Nd3 {[%clk 0:02:07.3]}
15... Qe7 {[%clk 0:02:14]} 16. Nb4 {[%clk 0:02:01.8]} 16... Qe6 {[%clk
0:01:56.7]} 17. Nd5 {[%clk 0:01:57.5]} 17... Ne8 {[%clk 0:01:53.2]} 18. f4
{[%clk 0:01:52]} 18... g6 {[%clk 0:01:38.9]} 19. f5 {[%clk 0:01:34.4]} 19...
gxf5 {[%clk 0:01:37.5]} 20. Bh3 {[%clk 0:01:34.5]} 20... Ne7 {[%clk 0:01:21.4]}
21. Bxf5 {[%clk 0:01:24.2]} 21... Nxf5 {[%clk 0:01:15.3]} 22. Rxf5 {[%clk
0:01:23.8]} 22... f6 {[%clk 0:00:59.9]} 23. Raf1 {[%clk 0:01:16.3]} 23... Rf7
{[%clk 0:00:53.3]} 24. Qe4 {[%clk 0:01:06.3]} 24... Nd6 {[%clk 0:00:42.1]} 25.
Qg4+ {[%clk 0:00:51.1]} 25... Kh8 {[%clk 0:00:41.9]} 26. e4 {[%clk 0:00:31.3]}
26... dxe3 {[%clk 0:00:41.9]} 27. Nxe3 {[%clk 0:00:31.5]} 27... Nxf5 {[%clk
0:00:42]} 28. Nxf5 {[%clk 0:00:31.8]} 28... Qb6+ {[%clk 0:00:29.4]} 29. Kh1
{[%clk 0:00:25.3]} 29... Bd7 {[%clk 0:00:26.4]} 30. h4 {[%clk 0:00:19.1]} 30...
Rg8 {[%clk 0:00:25.8]} 31. Qh5 {[%clk 0:00:16.7]} 31... Bc6+ {[%clk 0:00:20.7]}
32. Kh2 {[%clk 0:00:16.3]} 32... Qxb2 {[%clk 0:00:20.4]} 33. Rf2 {[%clk
0:00:14.7]} 33... Qb1 {[%clk 0:00:14.7]} 34. Rg2 {[%clk 0:00:04.8]} 34... Bxg2
{[%clk 0:00:08.9]} 35. Kxg2 {[%clk 0:00:05.7]} 35... Qe4+ {[%clk 0:00:09.1]} 36.
Kh2 {[%clk 0:00:03.8]} 36... Rd7 {[%clk 0:00:07.2]} 37. Bh6 {[%clk 0:00:02.7]}
37... Rg6 {[%clk 0:00:03.4]} 38. Bg7+ {[%clk 0:00:02.2]} 38... Rgxg7 {[%clk
0:00:03.7]} 39. Qe8+ {[%clk 0:00:02.4]} 39... Rg8 {[%clk 0:00:03.6]} 40. Qxd7
{[%clk 0:00:02.8]} 40... Qe2+ {[%clk 0:00:03.4]} 41. Kh3 {[%clk 0:00:03]} 41...
Qf1+ {[%clk 0:00:03.7]} 42. Kh2 {[%clk 0:00:03.2]} 42... Qf2+ {[%clk 0:00:04.4]}
43. Kh3 {[%clk 0:00:03.8]} 43... h5 {[%clk 0:00:04.5]} 44. Qe6 {[%clk
0:00:02.5]} 44... Qf3 {[%clk 0:00:03.2]} 45. Qxf6+ {[%clk 0:00:01.7]} 45... Kh7
{[%clk 0:00:02.9]} 46. Qh6# {[%clk 0:00:02.2]} 1-0